fUST/lending_fUST_20250715
["ID","MTS","AMOUNT","RATE_DAILY","PERIOD"]
[372250692,1752562254502,-497.93,0.00022252,2]
[372250694,1752562254511,-460.0,0.00022252,2]
[372250696,1752562254521,-636.48,0.00022252,2]
[372250698,1752562254531,-288.04291655,0.00022252,2]
[372250700,1752562254541,-160.0,0.0002226,6]
[372250702,1752562254551,-3000.0,0.0002226,2]
[372250704,1752562254560,-3000.0,0.0002227,2]
[372250706,1752562254570,-192.59868752,0.00022274,2]
[372250708,1752562254580,-151.0,0.00022279,7]
[372250710,1752562254591,-177.943198,0.00022279,7]
[372250712,1752562254600,-1670.89705685,0.00022279,6]
[372250714,1752562254610,-3000.0,0.0002228,2]
[372250716,1752562254620,-3000.0,0.0002229,2]
[372250718,1752562254630,-151.0,0.0002229,7]
[372250720,1752562254644,-151.0,0.0002229,7]
[372250722,1752562254654,-169.95868,0.0002229,7]
[372250724,1752562254665,-169.95868,0.0002229,7]
[372250726,1752562254676,-166.790333,0.0002229,7]
[372250728,1752562254686,-166.790333,0.0002229,7]
[372250730,1752562254696,-3000.0,0.000223,2]
[372250732,1752562254706,-656.51822328,0.000223,2]
[372250734,1752562254716,-260.510826,0.00022308,7]
[372250736,1752562254726,-3000.0,0.0002231,2]
[372250738,1752562254736,-3000.0,0.0002232,2]
[372250740,1752562254748,-3825.0,0.0002233,2]
[372250742,1752562254758,-3000.0,0.0002233,2]
[372250744,1752562254768,-3080.455459,0.0002234,2]
[372250746,1752562254777,-340.0,0.00022364,2]
[372250748,1752562254787,-160.0,0.00022373,7]
[372250750,1752562254796,-2500.0,0.00022378,2]
[372250751,1752562254806,-192.59868752,0.00022384,2]
[372250754,1752562254816,-260.510826,0.00022385,7]
[372250755,1752562254826,-460.0,0.00022386,2]
[372250758,1752562254836,-564.46,0.00022386,2]
[372250759,1752562254846,-632.47,0.00022386,2]
[372250762,1752562254856,-3532.72,0.00022386,2]
[372250763,1752562254867,-460.0,0.00022386,2]
[372250766,1752562254877,-460.0,0.00022386,2]
[372250768,1752562254887,-5786.89,0.00022386,2]
[372250770,1752562254898,-4811.36,0.00022387,2]
[372250772,1752562254908,-460.0,0.00022387,2]
[372250774,1752562254918,-1071.41,0.00022387,2]
[372250776,1752562254928,-2535.92,0.00022387,2]
[372250778,1752562254938,-658.22,0.00022387,2]
[372250780,1752562254947,-3527.94,0.00022387,2]
[372250782,1752562254956,-692.45,0.00022387,2]
[372250784,1752562254966,-355.01916707,0.00022387,2]
[372250785,1752562254978,-463.25,0.00022387,2]
[372250787,1752562254988,-810.61,0.00022387,2]
[372250789,1752562254998,-2370.09,0.00022387,2]
[372250791,1752562255007,-509.93,0.00022387,2]
[372250793,1752562255017,-819.58,0.00022387,2]
[372250795,1752562255027,-874.96,0.00022387,2]
[372250797,1752562255037,-460.0,0.00022387,2]
[372250799,1752562255046,-151.0,0.00022387,7]
[372250802,1752562255056,-977.84,0.00022387,2]
[372250803,1752562255066,-460.0,0.00022388,2]
[372250805,1752562255075,-460.0,0.00022388,2]
[372250807,1752562255085,-460.0,0.00022388,2]
[372250808,1752562255094,-460.0,0.00022388,2]
[372250809,1752562255104,-568.66,0.00022388,2]
[372250810,1752562255113,-460.0,0.00022388,2]
[372250811,1752562255123,-618.74,0.00022388,2]
[372250812,1752562255132,-720.55,0.00022388,2]
[372250813,1752562255142,-1057.22,0.00022388,2]
[372250814,1752562255151,-1390.35,0.00022388,2]
[372250815,1752562255160,-722.11,0.00022388,2]
[372250816,1752562255170,-808.59,0.00022388,2]
[372250818,1752562255179,-888.08,0.00022388,2]
[372250820,1752562255190,-1385.722063,0.00022388,7]
[372250822,1752562255199,-153.672201,0.00022388,7]
[372250824,1752562255209,-1385.722063,0.00022388,7]
[372250826,1752562255219,-1059.82,0.00022388,2]
[372250828,1752562255228,-460.0,0.00022388,2]
[372250829,1752562255238,-263.435476,0.00022388,7]
[372250831,1752562255248,-875.06,0.00022388,2]
[372250834,1752562255257,-826.33,0.00022388,2]
[372250835,1752562255267,-581.02,0.00022388,2]
[372250838,1752562255277,-460.0,0.00022388,2]
[372250840,1752562255286,-460.0,0.00022388,2]
[372250842,1752562255296,-460.0,0.00022389,2]
[372250844,1752562255306,-6716.04,0.00022389,2]
[372250846,1752562255317,-1559.66,0.00022389,2]
[372250847,1752562255328,-1136.82,0.00022389,2]
[372250850,1752562255339,-874.61,0.00022389,2]
[372250851,1752562255348,-2386.42,0.00022389,2]
[372250854,1752562255359,-562.3,0.00022389,2]
[372250855,1752562255370,-955.93,0.00022389,2]
[372250858,1752562255381,-3601.14,0.00022389,2]
[372250860,1752562255391,-604.75,0.00022389,2]
[372250862,1752562255402,-1761.32,0.00022389,2]
[372250864,1752562255411,-2352.52,0.00022389,2]
[372250866,1752562255423,-151.0,0.0002243,7]
[372250867,1752562255432,-151.522882,0.0002243,7]
[372250870,1752562255442,-169.95868,0.0002243,7]
[372250872,1752562255451,-169.95868,0.0002243,7]
[372250874,1752562255461,-166.790333,0.0002243,7]
[372250876,1752562255472,-166.790333,0.0002243,7]
[372250878,1752562255482,-151.0,0.0002243,7]
[372250879,1752562255491,-260.510826,0.00022442,5]
[372250882,1752562255502,-151.0,0.00022444,7]
[372250884,1752562255511,-151.0,0.00022444,7]
[372250885,1752562255521,-151.885509,0.00022444,7]
[372250888,1752562255531,-151.0,0.00022444,7]
[372250890,1752562255540,-536.290029,0.00022444,7]
[372250891,1752562255551,-536.290029,0.00022444,7]
[372250894,1752562255561,-780.231773,0.00022444,7]
[372250896,1752562255570,-780.231773,0.00022444,7]
[372250898,1752562255580,-620.946716,0.00022444,7]
[372250900,1752562255589,-620.946716,0.00022444,7]
[372250902,1752562255599,-151.0,0.00022444,7]
[372250904,1752562255609,-1670.89705685,0.00022452,7]
[372250906,1752562255618,-646.323805,0.00022452,7]
[372250908,1752562255627,-646.323805,0.00022452,7]
[372250910,1752562255637,-262.849076,0.00022452,7]
[372250912,1752562255647,-262.849076,0.00022452,7]
[372250914,1752562255656,-260.510826,0.00022456,5]
[372250916,1752562255667,-260.510826,0.00022462,7]
[372250918,1752562255678,-151.0,0.00022465,7]
[372250920,1752562255688,-151.0,0.00022465,7]
[372250921,1752562255702,-151.0,0.00022465,7]
[372250924,1752562255713,-151.0,0.00022465,7]
[372250925,1752562255724,-151.0,0.00022465,7]
[372250928,1752562255734,-151.0,0.00022465,7]
[372250929,1752562255745,-151.0,0.00022465,7]
[372250932,1752562255756,-151.0,0.00022465,7]
[372250933,1752562255765,-876.73,0.00022465,2]
[372250935,1752562255775,-601.14,0.00022465,2]
[372250937,1752562255786,-460.0,0.00022465,2]
[372250940,1752562255796,-345.590508,0.00022465,7]
[372250942,1752562255805,-345.590508,0.00022465,7]
[372250944,1752562255815,-530.91,0.00022465,2]
[372250946,1752562255824,-460.0,0.00022465,2]
[372250948,1752562255835,-859.4,0.00022465,2]
[372250950,1752562255844,-460.0,0.00022465,2]
[372250952,1752562255854,-460.0,0.00022465,2]
[372250954,1752562255863,-700.69,0.00022465,2]
[372250956,1752562255873,-941.73,0.00022465,2]
[372250958,1752562255882,-5746.08,0.00022465,2]
[372250960,1752562255892,-460.0,0.00022465,2]
[372250962,1752562255901,-2477.79,0.00022465,2]
[372250964,1752562255910,-260.510826,0.00022471,5]
[372250965,1752562255920,-150.0,0.00022473,2]
[372250968,1752562255929,-150.0,0.00022473,2]
[372250970,1752562255939,-160.0,0.00022486,8]
[372250972,1752562255949,-260.510826,0.00022486,5]
[372250974,1752562255958,-2620.46,0.00022486,4]
[372250976,1752562255967,-28849.37671567,0.0002249,7]
[372250977,1752562255977,-151.0,0.0002249,7]
[372250979,1752562255987,-151.0,0.0002249,7]
[372250981,1752562255996,-151.0,0.0002249,7]
[372250983,1752562256005,-151.0,0.0002249,7]
[372250985,1752562256015,-153.068854,0.0002249,7]
[372250988,1752562256024,-153.068854,0.0002249,7]
[372250990,1752562256035,-192.59868752,0.00022493,2]
[372250992,1752562256044,-6756.69,0.000225,7]
[372250993,1752562256054,-3253.21,0.000225,7]
[372250996,1752562256063,-42694.42,0.000225,2]
[372251008,1752562256171,-151.0,0.000225,7]
[372251010,1752562256182,-151.0,0.000225,7]
[372251012,1752562256192,-151.0,0.000225,3]
[372251014,1752562256202,-151.0,0.000225,7]
[372251016,1752562256211,-151.0,0.000225,7]
[372251018,1752562256221,-151.0,0.000225,7]
[372251020,1752562256231,-178.033542,0.000225,7]
[372251022,1752562256239,-151.0,0.000225,7]
[372251024,1752562256249,-151.0,0.000225,7]
[372251026,1752562256260,-151.0,0.000225,7]
[372251028,1752562256270,-151.0,0.000225,7]
[372251030,1752562256279,-1006.21254272,0.000225,2]
[372251032,1752562256288,-151.0,0.000225,7]
[372251034,1752562256297,-973.53671,0.000225,7]
[372251036,1752562256307,-973.53671,0.000225,7]
[372251038,1752562256316,-151.0,0.000225,7]
[372251040,1752562256326,-260.510826,0.000225,5]
[372251042,1752562256336,-260.510826,0.000225,10]
[372251044,1752562256345,-460.0,0.00022504,2]
[372251046,1752562256355,-1000.0,0.00022521,2]
[372251048,1752562256364,-1000.0,0.00022521,2]
[372251050,1752562256373,-151.0,0.00022521,7]
[372251052,1752562256382,-151.0,0.00022521,7]
[372251054,1752562256392,-497.93,0.00022526,2]
[372251056,1752562256401,-460.0,0.00022526,2]
[372251058,1752562256410,-636.48,0.00022526,2]
[372251060,1752562256419,-151.0,0.00022526,7]
[372251062,1752562256429,-191.062616,0.00022526,7]
[372251064,1752562256438,-191.062616,0.00022526,7]
[372251066,1752562256448,-720.401618,0.00022526,7]
[372251068,1752562256457,-720.401618,0.00022526,7]
[372251070,1752562256467,-151.0,0.00022526,7]
[372251072,1752562256478,-164.316515,0.00022526,7]
[372251074,1752562256487,-164.316515,0.00022526,7]
[372251076,1752562256497,-151.0,0.00022528,7]
[372251078,1752562256506,-151.0,0.00022528,7]
[372251080,1752562256516,-213.387446,0.00022528,7]
[372251082,1752562256527,-213.387446,0.00022528,7]
[372251084,1752562256537,-1872.64052,0.00022528,7]
[372251086,1752562256546,-151.0,0.00022528,7]
[372251088,1752562256556,-151.0,0.00022528,7]
[372251090,1752562256565,-151.0,0.00022528,7]
[372251092,1752562256575,-210.538899,0.00022528,7]
[372251094,1752562256584,-210.538899,0.00022528,7]
[372251096,1752562256594,-1074.383098,0.00022528,7]
[372251098,1752562256603,-260.510826,0.0002254,7]
[372251100,1752562256612,-3000.0,0.0002255,2]
[372251102,1752562256623,-260.510826,0.0002256,2]
[372251104,1752562256632,-2620.46,0.00022586,5]
[372251106,1752562256643,-160.0,0.00022599,9]
[372251108,1752562256652,-642.0,0.000226,2]
[372251110,1752562256661,-192.59868752,0.00022603,2]
[372251112,1752562256676,-204.833753,0.00022603,2]
[372251115,1752562256686,-400.0,0.00022603,2]
[372251116,1752562256695,-151.0,0.00022603,7]
[372251119,1752562256705,-306.276288,0.00022603,7]
[372251121,1752562256716,-205.0,0.0002261,2]
[372251123,1752562256729,-7229.20368157,0.00022614,2]
[372251124,1752562256739,-600.0,0.00022619,2]
[372251126,1752562256750,-1670.89705685,0.00022624,7]
[372251128,1752562256759,-5888.0,0.00022636,2]
[372251131,1752562256769,-151.0,0.00022638,7]
[372251132,1752562256779,-864.31156983,0.00022649,2]
[372251135,1752562256788,-460.0,0.0002266,2]
[372251136,1752562256798,-564.46,0.0002266,2]
[372251139,1752562256808,-632.47,0.0002266,2]
[372251140,1752562256817,-3532.72,0.0002266,2]
[372251143,1752562256827,-460.0,0.0002266,2]
[372251145,1752562256836,-460.0,0.0002266,2]
[372251146,1752562256846,-5786.89,0.0002266,2]
[372251148,1752562256855,-769.58075427,0.00022661,2]
[372251151,1752562256865,-4811.36,0.00022661,2]
[372251153,1752562256875,-460.0,0.00022661,2]
[372251155,1752562256884,-1071.41,0.00022661,2]
[372251157,1752562256893,-2535.92,0.00022661,2]
[372251158,1752562256903,-658.22,0.00022661,2]
[372251161,1752562256912,-3527.94,0.00022661,2]
[372251163,1752562256922,-692.45,0.00022661,2]
[372251164,1752562256931,-463.25,0.00022661,2]
[372251166,1752562256941,-810.61,0.00022661,2]
[372251168,1752562256951,-2370.09,0.00022661,2]
[372251171,1752562256961,-509.93,0.00022661,2]
[372251173,1752562256972,-819.58,0.00022661,2]
[372251175,1752562256981,-874.96,0.00022661,2]
[372251177,1752562256992,-460.0,0.00022661,2]
[372251179,1752562257001,-977.84,0.00022661,2]
[372251181,1752562257011,-460.0,0.00022662,2]
[372251183,1752562257020,-460.0,0.00022662,2]
[372251185,1752562257030,-460.0,0.00022662,2]
[372251187,1752562257039,-460.0,0.00022662,2]
[372251189,1752562257048,-568.66,0.00022662,2]
[372251191,1752562257058,-460.0,0.00022662,2]
[372251193,1752562257067,-618.74,0.00022662,2]
[372251195,1752562257076,-720.55,0.00022662,2]
[372251197,1752562257085,-1057.22,0.00022662,2]
[372251199,1752562257094,-1390.35,0.00022662,2]
[372251200,1752562257104,-722.11,0.00022662,2]
[372251203,1752562257113,-808.59,0.00022662,2]
[372251205,1752562257123,-888.08,0.00022662,2]
[372251207,1752562257132,-1059.82,0.00022662,2]
[372251209,1752562257142,-460.0,0.00022662,2]
[372251211,1752562257151,-875.06,0.00022662,2]
[372251213,1752562257161,-826.33,0.00022662,2]
[372251214,1752562257170,-581.02,0.00022662,2]
[372251217,1752562257179,-460.0,0.00022662,2]
[372251219,1752562257189,-460.0,0.00022662,2]
[372251221,1752562257198,-460.0,0.00022663,2]
[372251222,1752562257207,-460.0,0.00022663,2]
[372251225,1752562257216,-6716.04,0.00022663,2]
[372251227,1752562257227,-1559.66,0.00022663,2]
[372251228,1752562257237,-1136.82,0.00022663,2]
[372251231,1752562257246,-874.61,0.00022663,2]
[372251232,1752562257255,-2386.42,0.00022663,2]
[372251235,1752562257266,-562.3,0.00022663,2]
[372251237,1752562257275,-955.93,0.00022663,2]
[372251238,1752562257286,-3601.14,0.00022663,2]
[372251241,1752562257296,-604.75,0.00022663,2]
[372251242,1752562257305,-1761.32,0.00022663,2]
[372251244,1752562257314,-2352.52,0.00022663,2]
[372251247,1752562257325,-260.510826,0.00022669,20]
[372251249,1752562257335,-192.59868752,0.00022685,2]
[372251250,1752562257345,-2620.46,0.00022686,5]
[372251252,1752562257356,-800.0,0.00022694,2]
[372251255,1752562257366,-160.0,0.00022712,10]
[372251257,1752562257378,-1000.0,0.00022721,2]
[372251259,1752562257387,-486.22115464,0.00022721,2]
[372251261,1752562257398,-151.0,0.00022737,7]
[372251262,1752562257407,-169.95868,0.00022737,7]
[372251264,1752562257416,-169.95868,0.00022737,7]
[372251267,1752562257426,-166.790333,0.00022737,7]
[372251268,1752562257435,-166.790333,0.00022737,7]
[372251270,1752562257445,-151.41411,0.00022739,7]
[372251272,1752562257455,-151.0,0.00022739,7]
[372251274,1752562257466,-151.0,0.00022739,7]
[372251276,1752562257477,-876.73,0.00022739,2]
[372251279,1752562257487,-601.14,0.00022739,2]
[372251281,1752562257497,-460.0,0.00022739,2]
[372251282,1752562257506,-530.91,0.00022739,2]
[372251285,1752562257516,-460.0,0.00022739,2]
[372251286,1752562257526,-859.4,0.00022739,2]
[372251288,1752562257537,-460.0,0.00022739,2]
[372251290,1752562257547,-460.0,0.00022739,2]
[372251293,1752562257558,-700.69,0.00022739,2]
[372251295,1752562257567,-941.73,0.00022739,2]
[372251296,1752562257576,-5746.08,0.00022739,2]
[372251299,1752562257588,-460.0,0.00022739,2]
[372251301,1752562257598,-2477.79,0.00022739,2]
[372251302,1752562257607,-151.0,0.00022764,7]
[372251305,1752562257617,-2500.0,0.00022764,2]
[372251306,1752562257626,-150.0,0.00022767,2]
[372251308,1752562257635,-164.6973029,0.00022767,2]
[372251310,1752562257645,-260.510826,0.0002277,15]
[372251312,1752562257654,-1760.092003,0.0002278,5]
[372251314,1752562257664,-2620.46,0.00022786,3]
[372251317,1752562257677,-192.59868752,0.00022795,2]
[372251318,1752562257686,-306.0,0.00022795,2]
[372251321,1752562257696,-1385.722063,0.00022796,7]
[372251323,1752562257706,-1385.722063,0.00022796,7]
[372251324,1752562257716,-53310.42,0.000228,7]
[372251327,1752562257727,-151.0,0.000228,7]
[372251328,1752562257736,-151.0,0.000228,7]
[372251330,1752562257747,-151.0,0.000228,7]
[372251332,1752562257757,-151.0,0.000228,7]
[372251334,1752562257766,-151.0,0.000228,7]
[372251336,1752562257775,-151.0,0.000228,7]
[372251338,1752562257785,-151.0,0.000228,7]
[372251340,1752562257795,-151.0,0.000228,7]
[372251342,1752562257805,-287.432632,0.000228,7]
[372251345,1752562257814,-229.177024,0.000228,7]
[372251347,1752562257824,-345.590508,0.000228,7]
[372251349,1752562257835,-345.590508,0.000228,7]
[372251350,1752562257844,-151.0,0.000228,7]
[372251353,1752562257854,-536.290029,0.000228,7]
[372251355,1752562257863,-536.290029,0.000228,7]
[372251357,1752562257872,-497.93,0.000228,2]
[372251359,1752562257882,-401.32362584,0.000228,2]
[372251360,1752562257891,-1000.0,0.000228,5]
[372251363,1752562257901,-646.323805,0.000228,7]
[372251364,1752562257910,-646.323805,0.000228,7]
[372251366,1752562257919,-151.0,0.000228,7]
[372251368,1752562257929,-262.849076,0.000228,7]
[372251370,1752562257938,-262.849076,0.000228,7]
[372251372,1752562257948,-780.231773,0.000228,7]
[372251374,1752562257957,-780.231773,0.000228,7]
[372251377,1752562257967,-620.946716,0.000228,7]
[372251378,1752562257976,-620.946716,0.000228,7]
[372251381,1752562257987,-151.0,0.000228,7]
[372251383,1752562257996,-636.48,0.000228,2]
[372251384,1752562258006,-1000.0,0.0002282,5]
[372251387,1752562258016,-160.0,0.00022825,11]
[372251389,1752562258026,-1000.0,0.0002284,5]
[372251391,1752562258035,-603.10873398,0.00022854,2]
[372251393,1752562258044,-1959.834106,0.0002286,5]
[372251395,1752562258054,-1000.0,0.0002286,5]
[372251397,1752562258064,-1000.0,0.0002288,5]
[372251398,1752562258073,-1000.0,0.0002288,5]
[372251401,1752562258082,-151.0,0.00022886,7]
[372251402,1752562258092,-2620.46,0.00022886,2]
[372251404,1752562258102,-1000.0,0.000229,5]
[372251416,1752562258197,-1000.0,0.000229,5]
[372251418,1752562258207,-192.59868752,0.00022904,2]
[372251420,1752562258216,-1000.0,0.0002292,5]
[372251422,1752562258226,-1000.0,0.0002292,5]
[372251424,1752562258236,-3008.29863241,0.00022926,2]
[372251426,1752562258245,-741.0,0.00022933,2]
[372251428,1752562258255,-460.0,0.00022934,2]
[372251430,1752562258264,-564.46,0.00022934,2]
[372251432,1752562258274,-632.47,0.00022934,2]
[372251434,1752562258283,-3532.72,0.00022934,2]
[372251436,1752562258293,-460.0,0.00022934,2]
[372251438,1752562258302,-460.0,0.00022934,2]
[372251440,1752562258312,-5786.89,0.00022934,2]
[372251442,1752562258322,-4811.36,0.00022935,2]
[372251444,1752562258333,-460.0,0.00022935,2]
[372251446,1752562258343,-1071.41,0.00022935,2]
[372251448,1752562258352,-2535.92,0.00022935,2]
[372251450,1752562258362,-658.22,0.00022935,2]
[372251452,1752562258372,-3527.94,0.00022935,2]
[372251454,1752562258381,-692.45,0.00022935,2]
[372251456,1752562258390,-463.25,0.00022935,2]
[372251458,1752562258399,-810.61,0.00022935,2]
[372251460,1752562258409,-2370.09,0.00022935,2]
[372251462,1752562258418,-509.93,0.00022935,2]
[372251464,1752562258427,-819.58,0.00022935,2]
[372251466,1752562258436,-874.96,0.00022935,2]
[372251468,1752562258445,-460.0,0.00022935,2]
[372251471,1752562258455,-977.84,0.00022935,2]
[372251472,1752562258465,-460.0,0.00022936,2]
[372251474,1752562258475,-460.0,0.00022936,2]
[372251476,1752562258485,-460.0,0.00022936,2]
[372251479,1752562258494,-460.0,0.00022936,2]
[372251481,1752562258504,-568.66,0.00022936,2]
[372251482,1752562258513,-587.78295514,0.00022936,2]
[372251484,1752562258522,-618.74,0.00022936,2]
[372251486,1752562258531,-720.55,0.00022936,2]
[372251488,1752562258541,-1057.22,0.00022936,2]
[372251490,1752562258550,-1390.35,0.00022936,2]
[372251493,1752562258560,-722.11,0.00022936,2]
[372251495,1752562258570,-808.59,0.00022936,2]
[372251497,1752562258579,-888.08,0.00022936,2]
[372251498,1752562258588,-1059.82,0.00022936,2]
[372251501,1752562258598,-460.0,0.00022936,2]
[372251503,1752562258607,-875.06,0.00022936,2]
[372251505,1752562258617,-826.33,0.00022936,2]
[372251507,1752562258626,-581.02,0.00022936,2]
[372251509,1752562258635,-442.99605435,0.00022936,2]
[372251511,1752562258644,-460.0,0.00022937,2]
[372251512,1752562258654,-460.0,0.00022937,2]
[372251514,1752562258663,-6716.04,0.00022937,2]
[372251517,1752562258676,-1559.66,0.00022937,2]
[372251519,1752562258686,-1136.82,0.00022937,2]
[372251520,1752562258696,-874.61,0.00022937,2]
[372251523,1752562258706,-2386.42,0.00022937,2]
[372251525,1752562258717,-562.3,0.00022937,2]
[372251527,1752562258727,-955.93,0.00022937,2]
[372251528,1752562258736,-3601.14,0.00022937,2]
[372251531,1752562258747,-604.75,0.00022937,2]
[372251533,1752562258757,-1761.32,0.00022937,2]
[372251535,1752562258767,-2352.52,0.00022937,2]
[372251537,1752562258777,-160.0,0.00022938,12]
[372251539,1752562258786,-1000.0,0.0002294,5]
[372251541,1752562258795,-1000.0,0.0002294,5]
[372251543,1752562258805,-1000.0,0.0002296,5]
[372251545,1752562258815,-1000.0,0.0002296,5]
[372251547,1752562258823,-205.0,0.0002297,2]
[372251549,1752562258832,-1000.0,0.0002298,5]
[372251550,1752562258842,-1000.0,0.0002298,5]
[372251553,1752562258852,-7229.20368157,0.0002298,2]
[372251554,1752562258861,-151.0,0.00022986,7]
[372251556,1752562258871,-172.0,0.00022986,3]
[372251558,1752562258880,-172.0,0.00022986,3]
[372251560,1752562258890,-172.0,0.00022986,3]
[372251562,1752562258899,-500.0,0.00022986,8]
[372251564,1752562258909,-152.0,0.00022986,3]
[372251566,1752562258918,-152.0,0.00022986,3]
[372251569,1752562258928,-152.0,0.00022986,3]
[372251571,1752562258937,-152.0,0.00022986,3]
[372251573,1752562258947,-152.0,0.00022986,3]
[372251575,1752562258956,-152.0,0.00022986,3]
[372251577,1752562258965,-152.0,0.00022986,3]
[372251579,1752562258977,-152.0,0.00022986,3]
[372251580,1752562258987,-152.0,0.00022986,3]
[372251582,1752562258997,-152.0,0.00022986,3]
[372251585,1752562259006,-152.0,0.00022986,3]
[372251587,1752562259016,-152.0,0.00022986,3]
[372251588,1752562259025,-152.0,0.00022986,3]
[372251591,1752562259035,-152.0,0.00022986,3]
[372251592,1752562259045,-152.0,0.00022986,3]
[372251595,1752562259054,-152.0,0.00022986,3]
[372251596,1752562259063,-152.0,0.00022986,3]
[372251599,1752562259073,-152.0,0.00022986,3]
[372251601,1752562259083,-152.0,0.00022986,3]
[372251603,1752562259092,-152.0,0.00022986,3]
[372251605,1752562259102,-152.0,0.00022986,3]
[372251606,1752562259111,-152.0,0.00022986,3]
[372251609,1752562259120,-152.0,0.00022986,3]
[372251610,1752562259131,-152.0,0.00022986,3]
[372251612,1752562259140,-152.0,0.00022986,3]
[372251614,1752562259149,-152.0,0.00022986,3]
[372251616,1752562259160,-152.0,0.00022986,3]
[372251618,1752562259169,-152.0,0.00022986,3]
[372251620,1752562259179,-152.0,0.00022986,3]
[372251623,1752562259188,-152.0,0.00022986,3]
[372251624,1752562259198,-152.0,0.00022986,3]
[372251626,1752562259208,-152.0,0.00022986,3]
[372251628,1752562259217,-152.0,0.00022986,3]
[372251630,1752562259228,-152.0,0.00022986,3]
[372251633,1752562259238,-172.0,0.00022986,3]
[372251634,1752562259248,-152.0,0.00022986,3]
[372251636,1752562259257,-152.0,0.00022986,3]
[372251638,1752562259267,-152.0,0.00022986,3]
[372251640,1752562259276,-172.0,0.00022986,3]
[372251643,1752562259285,-152.0,0.00022986,3]
[372251645,1752562259295,-173.29073302,0.00022986,3]
[372251646,1752562259304,-152.0,0.00022986,3]
[372251648,1752562259314,-152.0,0.00022986,3]
[372251649,1752562259323,-152.0,0.00022986,3]
[372251650,1752562259333,-152.0,0.00022986,3]
[372251651,1752562259342,-152.0,0.00022986,3]
[372251652,1752562259352,-152.0,0.00022986,3]
[372251653,1752562259361,-152.0,0.00022986,3]
[372251654,1752562259370,-152.0,0.00022986,3]
[372251655,1752562259380,-152.0,0.00022986,3]
[372251656,1752562259390,-152.0,0.00022986,3]
[372251657,1752562259400,-152.0,0.00022986,3]
[372251658,1752562259410,-152.0,0.00022986,3]
[372251659,1752562259419,-152.0,0.00022986,3]
[372251661,1752562259428,-152.0,0.00022986,3]
[372251662,1752562259439,-152.0,0.00022986,3]
[372251664,1752562259448,-152.0,0.00022986,3]
[372251666,1752562259458,-152.0,0.00022986,3]
[372251668,1752562259468,-152.0,0.00022986,3]
[372251670,1752562259479,-152.0,0.00022986,3]
[372251672,1752562259488,-152.0,0.00022986,3]
[372251674,1752562259498,-152.0,0.00022986,3]
[372251676,1752562259507,-152.0,0.00022986,3]
[372251678,1752562259517,-152.0,0.00022986,3]
[372251680,1752562259527,-152.0,0.00022986,3]
[372251682,1752562259536,-152.0,0.00022986,3]
[372251684,1752562259545,-152.0,0.00022986,3]
[372251686,1752562259555,-157.4514545,0.00022986,3]
[372251688,1752562259565,-500.0,0.00022986,8]